lending/lending_fUSD_20260124
["ID","MTS","AMOUNT","RATE_DAILY","PERIOD"]
[403237032,1769277044986,-500.0,0.00016438,2]
[403237034,1769277044995,-500.0,0.00016438,2]
[403237036,1769277045006,-500.0,0.00016438,2]
[403237038,1769277045015,-500.0,0.00016438,2]
[403237040,1769277045024,-500.0,0.00016438,2]
[403237042,1769277045033,-500.0,0.00016438,2]
[403237044,1769277045042,-500.0,0.00016438,2]
[403237046,1769277045051,-500.0,0.00016438,2]
[403237048,1769277045060,-500.0,0.00016438,2]
[403237050,1769277045069,-1925.7443818,0.00016438,2]
[403237052,1769277045078,-1925.7443818,0.00016438,2]
[403237054,1769277045087,-1925.7443818,0.00016438,2]
[403237056,1769277045096,-1925.7443818,0.00016438,2]
[403237058,1769277045105,-1925.7443818,0.00016438,2]
[403237060,1769277045113,-1925.7443818,0.00016438,2]
[403237062,1769277045123,-1925.7443818,0.00016438,2]
[403237064,1769277045132,-1925.7443818,0.00016438,2]
[403237066,1769277045141,-500.0,0.00016438,2]
[403237068,1769277045150,-500.0,0.00016438,2]
[403237070,1769277045159,-500.0,0.00016438,2]
[403237073,1769277045169,-413.19039471,0.00016438,2]
[403237075,1769277045178,-500.0,0.00016438,2]
[403237077,1769277045187,-500.0,0.00016438,2]
[403237079,1769277045197,-800.0,0.00016438,2]
[403237081,1769277045206,-151.0,0.00016438,2]
[403237083,1769277045216,-165.25,0.0001644,2]
[403237085,1769277045225,-152.0,0.00016488,8]
[403237087,1769277045234,-6877.73080493,0.00016577,2]
[403237089,1769277045243,-1776.4,0.0001666,2]
[403237091,1769277045252,-752.51490203,0.00016671,2]
[403237093,1769277045261,-484.52,0.00016683,2]
[403237095,1769277045270,-1225.44,0.00016683,2]
[403237097,1769277045279,-1776.4,0.00016782,2]
[403237099,1769277045288,-347.23,0.0001681,2]
[403237101,1769277045297,-500.0,0.00016819,2]
[403237103,1769277045306,-6877.73080493,0.00016842,2]
[403237105,1769277045315,-152.0,0.00016851,9]
[403237107,1769277045324,-527.0674605,0.00016894,2]
[403237109,1769277045333,-225.18697532,0.00016903,2]
[403237111,1769277045342,-1776.4,0.00016904,2]
[403237113,1769277045351,-1500.0,0.00016968,2]
[403237115,1769277045360,-446.80273923,0.00016968,2]
[403237117,1769277045369,-1500.0,0.00016968,2]
[403237119,1769277045378,-1500.0,0.00016968,2]
[403237121,1769277045387,-1500.0,0.00016968,2]
[403237123,1769277045397,-1500.0,0.00016968,2]
[403237125,1769277045406,-1500.0,0.00016968,2]
[403237127,1769277045415,-1500.0,0.00016968,2]
[403237129,1769277045424,-250.0,0.00017,2]
[403237131,1769277045433,-3207.48934641,0.00017,2]
[403237133,1769277045442,-1776.4,0.00017025,2]
[403237135,1769277045452,-836.0,0.0001704,2]
[403237137,1769277045461,-500.0,0.00017079,2]
[403237138,1769277045470,-500.0,0.00017079,2]
[403237141,1769277045480,-500.0,0.00017079,2]
[403237143,1769277045489,-500.0,0.00017079,2]
[403237145,1769277045498,-500.0,0.00017079,2]
[403237147,1769277045508,-500.0,0.00017079,2]
[403237149,1769277045517,-238.3883883,0.00017079,2]
[403237151,1769277045526,-446.04265821,0.000171,2]
[403237153,1769277045535,-2000.0,0.000171,2]
[403237155,1769277045544,-5523.87366263,0.00017105,2]
[403237157,1769277045553,-6877.73080493,0.00017106,2]
[403237159,1769277045562,-1776.4,0.00017147,2]
[403237161,1769277045572,-359.76179104,0.00017174,2]
[403237163,1769277045581,-152.0,0.00017215,10]
[403237164,1769277045590,-500.0,0.0001726,2]
[403237167,1769277045600,-500.0,0.0001726,2]
[403237168,1769277045609,-800.0,0.0001726,2]
[403237170,1769277045618,-800.0,0.0001726,2]
[403237172,1769277045627,-800.0,0.0001726,2]
[403237174,1769277045636,-800.0,0.0001726,2]
[403237176,1769277045645,-800.0,0.0001726,2]
[403237178,1769277045654,-800.0,0.0001726,2]
[403237181,1769277045663,-800.0,0.0001726,2]
[403237182,1769277045673,-800.0,0.0001726,2]
[403237184,1769277045681,-800.0,0.0001726,2]
[403237186,1769277045694,-800.0,0.0001726,2]
[403237188,1769277045703,-800.0,0.0001726,2]
[403237190,1769277045712,-800.0,0.0001726,2]
[403237192,1769277045721,-800.0,0.0001726,2]
[403237194,1769277045731,-800.0,0.0001726,2]
[403237196,1769277045740,-800.0,0.0001726,2]
[403237198,1769277045748,-800.0,0.0001726,2]
[403237200,1769277045758,-800.0,0.0001726,2]
[403237202,1769277045768,-800.0,0.0001726,2]
[403237204,1769277045777,-800.0,0.0001726,2]
[403237206,1769277045786,-800.0,0.0001726,2]
[403237208,1769277045795,-800.0,0.0001726,2]
[403237210,1769277045804,-800.0,0.0001726,2]
[403237212,1769277045813,-800.0,0.0001726,2]
[403237229,1769277046079,-800.0,0.0001726,2]
[403237231,1769277046089,-800.0,0.0001726,2]
[403237233,1769277046099,-800.0,0.0001726,2]
[403237236,1769277046109,-800.0,0.0001726,2]
[403237239,1769277046118,-800.0,0.0001726,2]
[403237242,1769277046127,-800.0,0.0001726,2]
[403237245,1769277046136,-800.0,0.0001726,2]
[403237247,1769277046144,-800.0,0.0001726,2]
[403237249,1769277046153,-800.0,0.0001726,2]
[403237251,1769277046164,-800.0,0.0001726,2]
[403237253,1769277046174,-800.0,0.0001726,2]
[403237255,1769277046183,-800.0,0.0001726,2]
[403237257,1769277046192,-800.0,0.0001726,2]
[403237259,1769277046201,-800.0,0.0001726,2]
[403237261,1769277046211,-800.0,0.0001726,2]
[403237263,1769277046220,-800.0,0.0001726,2]
[403237265,1769277046229,-800.0,0.0001726,2]
[403237267,1769277046238,-800.0,0.0001726,2]
[403237269,1769277046248,-800.0,0.0001726,2]
[403237271,1769277046257,-800.0,0.0001726,2]
[403237273,1769277046266,-800.0,0.0001726,2]
[403237275,1769277046276,-800.0,0.0001726,2]
[403237277,1769277046285,-800.0,0.0001726,2]
[403237279,1769277046293,-800.0,0.0001726,2]
[403237281,1769277046302,-452.0,0.0001726,2]
[403237283,1769277046311,-500.0,0.0001726,2]
[403237285,1769277046320,-617.0,0.0001726,2]
[403237287,1769277046329,-200.0,0.0001726,2]
[403237289,1769277046338,-200.0,0.0001726,2]
[403237291,1769277046347,-200.0,0.0001726,2]
[403237293,1769277046356,-200.0,0.0001726,2]
[403237295,1769277046366,-200.0,0.0001726,2]
[403237297,1769277046375,-200.0,0.0001726,2]
[403237299,1769277046383,-200.0,0.0001726,2]
[403237301,1769277046392,-200.0,0.0001726,2]
[403237303,1769277046401,-200.0,0.0001726,2]
[403237305,1769277046410,-200.0,0.0001726,2]
[403237307,1769277046419,-200.0,0.0001726,2]
[403237309,1769277046428,-200.0,0.0001726,2]
[403237311,1769277046436,-200.0,0.0001726,2]
[403237313,1769277046445,-200.0,0.0001726,2]
[403237315,1769277046454,-200.0,0.0001726,2]
[403237317,1769277046463,-200.0,0.0001726,2]
[403237319,1769277046472,-200.0,0.0001726,2]
[403237321,1769277046481,-200.0,0.0001726,2]
[403237323,1769277046490,-200.0,0.0001726,2]
[403237325,1769277046499,-200.0,0.0001726,2]
[403237327,1769277046508,-200.0,0.0001726,2]
[403237329,1769277046517,-200.0,0.0001726,2]
[403237331,1769277046526,-200.0,0.0001726,2]
[403237333,1769277046535,-200.0,0.0001726,2]
[403237335,1769277046544,-200.0,0.0001726,2]
[403237337,1769277046553,-200.0,0.0001726,2]
[403237339,1769277046562,-200.0,0.0001726,2]
[403237341,1769277046571,-200.0,0.0001726,2]
[403237343,1769277046580,-200.0,0.0001726,2]
[403237345,1769277046590,-200.0,0.0001726,2]
[403237347,1769277046599,-200.0,0.0001726,2]
[403237349,1769277046609,-200.0,0.0001726,2]
[403237351,1769277046618,-200.0,0.0001726,2]
[403237353,1769277046627,-200.0,0.0001726,2]
[403237355,1769277046636,-200.0,0.0001726,2]
[403237357,1769277046645,-200.0,0.0001726,2]
[403237360,1769277046654,-188.0,0.0001726,2]
[403237362,1769277046664,-1000.0,0.0001726,2]
[403237364,1769277046673,-1776.4,0.00017269,2]
[403237366,1769277046683,-752.51490203,0.00017286,2]
[403237368,1769277046696,-3183.0,0.00017288,2]
[403237370,1769277046705,-6877.73080493,0.00017371,2]
[403237372,1769277046714,-200.0,0.00017376,2]
[403237374,1769277046723,-1776.4,0.00017391,2]
[403237376,1769277046734,-500.0,0.00017399,2]
[403237378,1769277046743,-2000.0,0.000174,2]
[403237380,1769277046752,-900.0,0.00017422,2]
[403237382,1769277046761,-233.51889341,0.00017451,2]
[403237384,1769277046770,-3183.0,0.00017476,2]
[403237386,1769277046779,-1776.4,0.00017513,2]
[403237388,1769277046789,-2000.0,0.00017516,2]
[403237390,1769277046800,-2000.0,0.00017516,2]
[403237392,1769277046809,-2000.0,0.00017516,2]
[403237394,1769277046818,-2000.0,0.00017516,2]
[403237396,1769277046827,-2000.0,0.00017516,2]
[403237398,1769277046837,-2000.0,0.00017516,2]
[403237400,1769277046846,-814.99405907,0.00017516,2]
[403237402,1769277046854,-462.73019669,0.00017534,2]
[403237404,1769277046863,-1000.0,0.00017534,2]
[403237406,1769277046872,-152.0,0.00017579,11]
[403237408,1769277046881,-228.92,0.00017604,2]
[403237410,1769277046890,-347.23,0.00017611,2]
[403237412,1769277046899,-159.59843399,0.00017612,2]
[403237414,1769277046908,-1776.4,0.00017635,2]
[403237416,1769277046917,-6877.73080493,0.00017635,2]
[403237418,1769277046926,-5404.10438685,0.0001764,2]
[403237420,1769277046935,-988.7,0.00017642,2]
[403237422,1769277046944,-484.52,0.00017642,2]
[403237424,1769277046953,-484.52,0.00017642,2]
[403237426,1769277046962,-990.7,0.00017642,2]
[403237428,1769277046971,-700.11,0.00017656,2]
[403237430,1769277046980,-484.52,0.00017656,2]
[403237432,1769277046990,-200.0,0.00017668,2]
[403237434,1769277046999,-857.0,0.0001768,2]
[403237436,1769277047008,-200.0,0.00017697,2]
[403237438,1769277047018,-200.0,0.00017698,2]
[403237440,1769277047027,-151.3661,0.000177,2]
[403237442,1769277047036,-3396.08042674,0.000177,2]
[403237444,1769277047044,-164.14762946,0.000177,2]
[403237446,1769277047053,-275.16490942,0.000177,2]
[403237448,1769277047062,-2000.0,0.000177,2]
[403237450,1769277047070,-215.99,0.00017704,2]
[403237452,1769277047079,-2583.0,0.00017708,2]
[403237454,1769277047089,-1000.0,0.00017728,2]
[403237456,1769277047098,-4475.427,0.0001773,2]
[403237458,1769277047107,-324.195,0.0001773,2]
[403237460,1769277047116,-929.63069455,0.0001773,2]
[403237462,1769277047124,-1000.0,0.00017732,2]
[403237464,1769277047133,-1000.0,0.00017734,2]
[403237466,1769277047142,-164.14762945,0.0001775,2]
[403237468,1769277047151,-161.99,0.00017754,2]
[403237470,1769277047160,-1776.4,0.00017756,2]
[403237471,1769277047169,-1000.0,0.00017758,2]
[403237474,1769277047178,-150.0,0.00017765,2]
[403237475,1769277047187,-1000.0,0.0001777,2]
[403237477,1769277047196,-1000.0,0.00017776,2]
[403237479,1769277047205,-1000.0,0.00017777,2]
[403237482,1769277047214,-1000.0,0.00017793,2]
[403237484,1769277047224,-500.0,0.00017794,2]
[403237485,1769277047233,-226.94622895,0.00017794,2]
[403237487,1769277047242,-500.0,0.00017794,2]
[403237489,1769277047252,-646.93,0.00017794,2]
[403237491,1769277047262,-150.0,0.00017794,2]
[403237493,1769277047271,-295.86,0.00017795,2]
[403237495,1769277047280,-10000.0,0.000178,2]
[403237497,1769277047289,-164.14762945,0.000178,2]
[403237499,1769277047300,-172.8753019,0.00017803,3]
[403237502,1769277047309,-345.43605478,0.00017805,2]
[403237504,1769277047323,-500.0,0.00017808,2]
[403237505,1769277047331,-500.0,0.00017808,2]
[403237507,1769277047341,-1000.0,0.00017808,2]
[403237510,1769277047350,-993.45440139,0.00017812,2]
[403237511,1769277047359,-1000.0,0.00017813,2]
[403237514,1769277047368,-150.0,0.0001782,2]
[403237516,1769277047377,-2000.0,0.0001782,2]
[403237518,1769277047387,-2000.0,0.0001782,2]
[403237520,1769277047396,-231.38369303,0.0001782,2]
[403237522,1769277047405,-5800.0,0.00017823,2]
[403237524,1769277047414,-151.0,0.00017827,2]
[403237525,1769277047423,-96953.83922531,0.0001783,2]
[403237528,1769277047432,-5800.0,0.00017832,2]
[403237530,1769277047441,-150.0,0.00017834,2]
[403237532,1769277047450,-1000.0,0.00017839,2]
[403237534,1769277047459,-5800.0,0.00017841,2]
[403237536,1769277047469,-25000.0,0.00017847,3]
[403237538,1769277047478,-5800.0,0.00017849,2]
[403237540,1769277047487,-250.0,0.00017849,2]
[403237542,1769277047497,-250.0,0.00017849,2]
[403237544,1769277047506,-250.0,0.00017849,2]
[403237546,1769277047515,-250.0,0.00017849,2]
[403237548,1769277047525,-250.0,0.00017849,2]
[403237550,1769277047534,-250.0,0.00017849,2]
[403237552,1769277047543,-250.0,0.00017849,2]
[403237553,1769277047552,-250.0,0.00017849,2]
[403237556,1769277047562,-250.0,0.00017849,2]
[403237558,1769277047571,-250.0,0.00017849,2]
[403237560,1769277047580,-250.0,0.00017849,2]
[403237562,1769277047589,-164.14762945,0.0001785,2]
[403237564,1769277047599,-1000.0,0.00017855,2]
[403237566,1769277047609,-200.0,0.00017855,2]
[403237568,1769277047618,-25000.0,0.00017856,3]
[403237570,1769277047627,-200.0,0.00017856,2]
[403237572,1769277047637,-5800.0,0.00017858,2]
[403237574,1769277047646,-1000.0,0.00017859,2]
[403237576,1769277047655,-500.0,0.00017862,2]
[403237578,1769277047664,-563.50315697,0.00017863,2]
[403237580,1769277047674,-500.0,0.00017863,2]
[403237582,1769277047683,-25000.0,0.00017865,3]
[403237584,1769277047696,-5800.0,0.00017866,2]
[403237586,1769277047706,-25000.0,0.00017874,3]
[403237588,1769277047714,-5800.0,0.00017874,2]
[403237590,1769277047724,-3183.0,0.00017875,2]
[403237592,1769277047734,-150.0,0.00017878,2]
[403237594,1769277047743,-1776.4,0.00017878,2]
[403237596,1769277047752,-1000.0,0.00017879,2]
[403237598,1769277047764,-25000.0,0.00017882,3]
[403237600,1769277047773,-5800.0,0.00017883,2]
[403237602,1769277047782,-1000.0,0.00017884,2]
[403237604,1769277047792,-1000.0,0.00017889,2]
[403237606,1769277047801,-584.0,0.0001789,2]
[403237608,1769277047810,-25000.0,0.00017891,3]
[403237610,1769277047819,-5800.0,0.00017891,2]
[403237612,1769277047828,-500.0,0.00017899,2]
[403237614,1769277047837,-150.0,0.00017899,2]
[403237616,1769277047847,-25000.0,0.000179,3]
[403237618,1769277047856,-5800.0,0.000179,2]
[403237620,1769277047865,-164.14762945,0.000179,2]
[403237622,1769277047874,-7609.85651561,0.000179,3]
[403237624,1769277047883,-752.51490203,0.000179,2]
[403237626,1769277047892,-174.54346112,0.000179,2]
[403237628,1769277047902,-6877.73080493,0.000179,2]
[403237630,1769277047910,-5523.87366263,0.000179,2]
[403237632,1769277047919,-190.80620809,0.000179,3]
[403237634,1769277047928,-21985.30537338,0.000179,2]
[403237636,1769277047937,-549.64135156,0.000179,2]
[403237638,1769277047946,-18243.6284635,0.000179,2]
[403237640,1769277047955,-13995.31137832,0.000179,2]
[403237642,1769277047964,-500.0,0.000179,2]
[403237644,1769277047973,-500.0,0.000179,2]
[403237646,1769277047983,-500.0,0.000179,2]
[403237648,1769277047992,-500.0,0.000179,2]
[403237650,1769277048005,-500.0,0.000179,2]
[403237652,1769277048014,-500.0,0.000179,2]
[403237654,1769277048023,-500.0,0.000179,2]
[403237656,1769277048032,-500.0,0.000179,2]
[403237658,1769277048042,-500.0,0.000179,2]
[403237660,1769277048051,-500.0,0.000179,2]
[403237662,1769277048060,-500.0,0.000179,2]
[403237664,1769277048069,-500.0,0.000179,2]
[403237666,1769277048079,-500.0,0.000179,2]
[403237668,1769277048088,-500.0,0.000179,2]
[403237670,1769277048097,-500.0,0.000179,2]
[403237672,1769277048105,-500.0,0.000179,2]
[403237674,1769277048115,-500.0,0.000179,2]
[403237676,1769277048124,-500.0,0.000179,2]
[403237678,1769277048133,-500.0,0.000179,2]
[403237680,1769277048141,-500.0,0.000179,2]
[403237682,1769277048151,-500.0,0.000179,2]
[403237684,1769277048160,-500.0,0.000179,2]
[403237685,1769277048169,-500.0,0.000179,2]
[403237688,1769277048178,-500.0,0.000179,2]
[403237689,1769277048188,-500.0,0.000179,2]
[403237691,1769277048197,-500.0,0.000179,2]
[403237693,1769277048206,-500.0,0.000179,2]
[403237695,1769277048216,-500.0,0.000179,2]
[403237698,1769277048225,-500.0,0.000179,2]
[403237699,1769277048235,-500.0,0.000179,2]
[403237701,1769277048244,-500.0,0.000179,2]
[403237703,1769277048253,-438.84409143,0.000179,2]
[403237706,1769277048262,-6680.0,0.000179,2]
[403237708,1769277048271,-500.0,0.00017918,2]
[403237710,1769277048280,-1000.0,0.00017926,2]
[403237712,1769277048290,-1000.0,0.00017933,2]
[403237714,1769277048300,-2583.0,0.00017935,2]
[403237715,1769277048309,-150.0,0.00017936,2]
[403237718,1769277048319,-152.0,0.00017943,12]
[403237720,1769277048328,-1000.0,0.00017945,2]
[403237722,1769277048337,-1000.0,0.00017946,2]
[403237724,1769277048346,-150.0,0.00017946,2]
[403237726,1769277048355,-1000.0,0.00017947,2]
[403237728,1769277048365,-150.0,0.00017963,2]
[403237730,1769277048374,-500.0,0.0001797,2]
[403237732,1769277048383,-1000.0,0.0001797,2]
[403237734,1769277048392,-1000.0,0.0001797,2]
[403237736,1769277048401,-1000.0,0.0001797,2]
[403237738,1769277048410,-1000.0,0.0001797,2]
[403237740,1769277048419,-1000.0,0.0001797,2]
[403237742,1769277048428,-1000.0,0.0001797,2]
[403237744,1769277048437,-1425.13914229,0.0001797,2]
[403237746,1769277048446,-500.0,0.0001797,2]
[403237748,1769277048454,-500.0,0.0001797,2]
[403237750,1769277048464,-500.0,0.0001797,2]
[403237752,1769277048474,-500.0,0.0001797,2]
[403237754,1769277048483,-500.0,0.0001797,2]
[403237756,1769277048493,-601.31337833,0.0001797,2]
[403237758,1769277048502,-475.19870368,0.00017972,2]
[403237760,1769277048511,-15820.0,0.00017973,2]
[403237762,1769277048520,-500.0,0.00017973,2]
[403237764,1769277048529,-500.0,0.00017973,2]
[403237766,1769277048538,-150.0,0.00017973,2]
[403237768,1769277048547,-500.0,0.00017973,2]
[403237770,1769277048556,-500.0,0.00017973,2]
[403237772,1769277048565,-500.0,0.00017973,2]
[403237774,1769277048574,-500.0,0.00017973,2]
[403237776,1769277048583,-500.0,0.00017973,2]
[403237778,1769277048592,-500.0,0.00017973,2]
[403237780,1769277048601,-500.0,0.00017973,2]
[403237782,1769277048610,-500.0,0.00017973,2]
[403237784,1769277048620,-500.0,0.00017973,2]
[403237786,1769277048629,-500.0,0.00017973,2]
[403237788,1769277048638,-500.0,0.00017973,2]
[403237790,1769277048647,-500.0,0.00017973,2]
[403237791,1769277048656,-500.0,0.00017973,2]
[403237794,1769277048666,-161.7441045,0.00017973,2]
[403237796,1769277048675,-500.0,0.00017973,2]
[403237798,1769277048685,-161.20666181,0.00017973,2]
[403237800,1769277048698,-333.14308792,0.00017973,2]
[403237801,1769277048707,-573.18204786,0.00017973,2]
[403237803,1769277048717,-500.0,0.00017973,2]
[403237806,1769277048726,-335.93123339,0.00017973,2]
[403237808,1769277048737,-500.0,0.00017973,2]
[403237809,1769277048746,-500.0,0.00017973,2]
[403237811,1769277048755,-500.0,0.00017973,2]
[403237813,1769277048764,-500.0,0.00017973,2]
[403237815,1769277048773,-500.0,0.00017973,2]
[403237817,1769277048782,-500.0,0.00017973,2]
[403237820,1769277048792,-500.0,0.00017973,2]
[403237821,1769277048801,-500.0,0.00017973,2]
[403237823,1769277048810,-500.0,0.00017973,2]
[403237825,1769277048820,-500.0,0.00017973,2]
[403237828,1769277048829,-500.0,0.00017973,2]
[403237830,1769277048839,-162.86883444,0.00017973,2]
[403237832,1769277048848,-160.30101054,0.00017973,2]
[403237834,1769277048857,-500.0,0.00017973,2]
[403237836,1769277048866,-500.0,0.00017973,2]
[403237838,1769277048876,-500.0,0.00017973,2]
[403237840,1769277048885,-300.0,0.00017973,2]
[403237842,1769277048894,-336.33747242,0.00017973,2]
[403237843,1769277048903,-500.0,0.00017973,2]
[403237846,1769277048912,-160.04899722,0.00017973,2]
[403237847,1769277048921,-159.93585942,0.00017973,2]
[403237849,1769277048930,-160.03828545,0.00017973,2]
[403237851,1769277048939,-180.05440168,0.00017973,2]
[403237853,1769277048948,-160.05160425,0.00017973,2]
[403237855,1769277048958,-160.95253726,0.00017973,2]
[403237857,1769277048967,-500.0,0.00017973,2]
[403237860,1769277048977,-163.10376799,0.00017973,2]
[403237862,1769277048986,-160.03318119,0.00017973,2]
[403237863,1769277048995,-160.05079201,0.00017973,2]
[403237865,1769277049004,-158.06916035,0.00017973,2]
[403237868,1769277049014,-160.05242782,0.00017973,2]
[403237870,1769277049023,-511.74783648,0.00017973,2]
[403237871,1769277049032,-485.5720463,0.00017973,2]
[403237874,1769277049041,-500.0,0.00017973,2]
[403237876,1769277049050,-161.03754612,0.00017973,2]
[403237878,1769277049060,-500.0,0.00017973,2]
[403237879,1769277049069,-500.0,0.00017973,2]
[403237880,1769277049078,-500.0,0.00017973,2]
[403237881,1769277049088,-500.0,0.00017973,2]
[403237882,1769277049097,-208.11665623,0.00017973,2]
[403237883,1769277049106,-500.0,0.00017973,2]
[403237884,1769277049115,-163.215227,0.00017973,2]
[403237885,1769277049124,-500.0,0.00017973,2]
[403237886,1769277049133,-150.87644931,0.00017973,2]
[403237887,1769277049141,-161.29695591,0.00017973,2]
[403237888,1769277049150,-558.82608128,0.00017973,2]
[403237889,1769277049158,-500.0,0.00017973,2]
[403237890,1769277049167,-521.52144255,0.00017973,2]
[403237891,1769277049176,-500.0,0.00017973,2]
[403237892,1769277049185,-500.0,0.00017973,2]
[403237893,1769277049193,-160.05235331,0.00017973,2]
[403237894,1769277049203,-160.0507877,0.00017973,2]
[403237895,1769277049211,-160.05036115,0.00017973,2]
[403237897,1769277049221,-500.0,0.00017973,2]
[403237898,1769277049230,-500.0,0.00017973,2]
[403237900,1769277049240,-500.0,0.00017973,2]
[403237902,1769277049249,-157.31967869,0.00017973,2]
[403237904,1769277049257,-500.0,0.00017973,2]
[403237906,1769277049267,-512.1744801,0.00017973,2]
[403237908,1769277049276,-160.04994992,0.00017973,2]
[403237910,1769277049285,-160.04998238,0.00017973,2]
[403237912,1769277049294,-508.83270828,0.00017973,2]
[403237914,1769277049303,-164.56853003,0.00017973,2]
[403237916,1769277049313,-500.0,0.00017973,2]
[403237918,1769277049322,-308.89625283,0.00017973,2]
[403237920,1769277049332,-284.08136107,0.00017973,2]
[403237922,1769277049342,-500.0,0.00017973,2]
[403237924,1769277049352,-167.78129088,0.00017973,2]
[403237926,1769277049360,-500.0,0.00017973,2]
[403237928,1769277049369,-500.0,0.00017973,2]
[403237930,1769277049378,-470.97442466,0.00017973,2]
[403237932,1769277049387,-500.0,0.00017973,2]
[403237934,1769277049396,-500.0,0.00017973,2]
[403237936,1769277049405,-500.0,0.00017973,2]
[403237938,1769277049415,-169.51216753,0.00017973,2]
[403237940,1769277049424,-376.31157826,0.00017973,2]
[403237942,1769277049434,-500.0,0.00017973,2]
[403237944,1769277049443,-500.0,0.00017973,2]
[403237946,1769277049452,-548.15607658,0.00017973,2]
[403237948,1769277049461,-166.43972344,0.00017973,2]
[403237950,1769277049470,-500.0,0.00017973,2]
[403237952,1769277049480,-500.0,0.00017973,2]
[403237954,1769277049489,-500.0,0.00017973,2]
[403237957,1769277049498,-500.0,0.00017973,2]
[403237959,1769277049508,-208.57012707,0.00017973,2]
[403237961,1769277049517,-500.0,0.00017973,2]
[403237963,1769277049526,-161.91357387,0.00017973,2]
[403237964,1769277049536,-500.0,0.00017973,2]
[403237966,1769277049549,-500.0,0.00017973,2]
[403237968,1769277049569,-162.47485834,0.00017973,2]
[403237970,1769277049586,-500.30897129,0.00017973,2]
[403237972,1769277049596,-165.72236604,0.00017973,2]
[403237974,1769277049607,-1000.0,0.00017974,2]
[403237976,1769277049616,-500.0,0.00017982,2]
[403237979,1769277049627,-150.0,0.00017984,2]
[403237980,1769277049639,-410.92119628,0.00017987,2]
[403237982,1769277049648,-527.0674605,0.0001799,2]
[403237985,1769277049658,-527.0674605,0.0001799,2]
[403237986,1769277049669,-500.0,0.00017997,2]
[403237988,1769277049679,-500.0,0.00017997,2]
[403237991,1769277049693,-151.0,0.00017997,2]
[403237993,1769277049705,-271.5388006,0.00017999,2]
[403237995,1769277049715,-150.0,0.00017999,2]
[403237997,1769277049726,-150.0,0.00017999,2]
[403237999,1769277049737,-156.86309582,0.00017999,2]
[403238001,1769277049747,-152.734551,0.00017999,2]
[403238002,1769277049756,-500.0,0.00017999,2]
[403238004,1769277049769,-500.0,0.00017999,2]
[403238006,1769277049778,-500.0,0.00017999,2]
[403238008,1769277049788,-500.0,0.00017999,2]
[403238011,1769277049798,-500.0,0.00017999,2]
[403238012,1769277049808,-500.0,0.00017999,2]
[403238014,1769277049817,-500.0,0.00017999,2]
[403238016,1769277049826,-500.0,0.00017999,2]
[403238018,1769277049836,-500.0,0.00017999,2]
[403238021,1769277049846,-500.0,0.00017999,2]
[403238023,1769277049857,-500.0,0.00017999,2]
[403238025,1769277049868,-500.0,0.00017999,2]
[403238027,1769277049877,-600.18668216,0.00017999,2]
[403238029,1769277049889,-300.0,0.00017999,2]
[403238031,1769277049900,-300.0,0.00017999,2]
[403238033,1769277049911,-300.0,0.00017999,2]